bitfinex-derivatives/quotes_ETHF0:USTF0_20260312
["timestamp","ask_amount","ask_price","bid_price","bid_amount"]
[1773291118397,0.00559401,2022.3,2022.1,0.56657755]
[1773291118593,0.00559314,2022.5,2022.1,0.56657755]
[1773291118799,0.55114738,2022.5,2022.1,0.56657755]
[1773291120300,0.00559314,2022.5,2022.1,0.56657755]
[1773291120702,6.85214856,2022.8,2022.1,0.56657755]
[1773291120903,0.54555424,2022.8,2022.1,0.56657755]
[1773291121606,0.55032725,2022.8,2022.1,0.56657755]
[1773291124209,0.55032725,2022.8,2022.3,0.56657755]
[1773291124706,0.00477301,2022.8,2022.3,0.56657755]
[1773291125303,0.54555424,2023.0,2022.3,0.56657755]
[1773291126209,0.00418217,2023.0,2022.3,0.56657755]
[1773291126810,0.54973641,2023.0,2022.5,0.56657755]
[1773291127005,0.54973641,2023.0,2022.5,0.57139183]
[1773291129807,0.00418217,2023.0,2022.5,0.57139183]
[1773291131112,0.54973641,2023.0,2022.5,0.57139183]
[1773291131810,0.00418217,2023.0,2022.5,0.57139183]
[1773291132510,0.54973641,2023.0,2022.5,0.57139183]
[1773291132712,0.00418217,2023.0,2022.5,0.57139183]
[1773291134914,0.00418217,2023.0,2022.7,0.56657755]
[1773291135714,0.24712,2023.2,2022.7,0.56657755]
[1773291136309,0.79267424,2023.2,2022.7,0.56657755]
[1773291136915,0.79618606,2023.2,2022.7,0.56657755]
[1773291139018,0.25063182,2023.2,2022.7,0.56657755]
[1773291139214,0.25063182,2023.2,2022.8,0.56657755]
[1773291140816,0.79979169,2023.2,2022.8,0.56657755]
[1773291141418,0.25063182,2023.2,2022.8,0.56657755]
[1773291142014,0.79979169,2023.2,2022.8,0.56657755]
[1773291142920,0.25063182,2023.2,2022.8,0.56657755]
[1773291144916,0.79979169,2023.2,2022.8,0.56657755]
[1773291145119,0.54915987,2023.1,2022.8,0.56657755]
[1773291145318,0.54915987,2023.1,2022.7,7.05616618]
[1773291145719,0.54915987,2023.1,2022.8,0.58216618]
[1773291146123,0.54915987,2022.9,2022.5,0.58698046]
[1773291146317,0.54915987,2022.9,2022.5,0.00481428]
[1773291146523,0.54915987,2022.9,2022.4,0.01253315]
[1773291146829,0.54915987,2022.9,2022.5,0.01253315]
[1773291147619,0.54915987,2022.9,2022.5,0.01696591]
[1773291147818,0.24714,2023.0,2022.6,0.02040376]
[1773291148124,0.58982786,2022.9,2022.6,0.02040376]
[1773291148725,0.58982786,2022.9,2022.5,0.00443276]
[1773291148726,0.58982786,2022.9,2022.5,0.02483652]
[1773291151530,0.83537151,2023.0,2022.5,0.02483652]
[1773291152332,0.58810588,2022.9,2022.5,0.02483652]
[1773291153731,0.58788049,2022.8,2022.5,0.02483652]
[1773291157843,0.58788049,2022.8,2022.5,0.00443276]
[1773291160349,0.58788049,2022.8,2022.5,0.02776171]
[1773291161048,0.58788049,2022.8,2022.5,0.00443276]
[1773291161346,1.94575519,2022.8,2022.5,0.00443276]
[1773291161549,0.58836527,2022.7,2022.5,0.00443276]
[1773291162047,0.58836527,2022.7,2022.2,0.02530729]
[1773291162242,0.58836527,2022.7,2022.3,6.475]
[1773291162547,0.58836527,2022.7,2022.3,6.50474005]
[1773291163048,0.58836527,2022.7,2022.3,6.51077681]
[1773291164846,0.58836527,2022.7,2022.4,6.475]
[1773291165748,0.58836527,2022.7,2022.4,6.50490143]
[1773291167354,0.58836527,2022.7,2022.3,0.00603676]
[1773291167851,0.58836527,2022.7,2022.3,0.03592085]
[1773291170856,0.58836527,2022.7,2022.4,6.50448443]
[1773291171451,0.58836527,2022.7,2022.4,6.475]
[1773291172058,0.58836527,2022.7,2022.3,0.03552119]
[1773291172258,0.58836527,2022.7,2022.4,6.475]
[1773291173252,0.58836527,2022.7,2022.4,0.02945229]
[1773291173458,0.58836527,2022.7,2022.4,6.50445229]
[1773291173858,0.58836527,2022.7,2022.3,0.0353758]
[1773291174060,0.58836527,2022.7,2022.4,6.475]
[1773291178768,1.90965382,2022.6,2022.4,6.475]
[1773291179465,1.90965382,2022.6,2022.3,0.59859152]
[1773291179661,1.90965382,2022.6,2022.3,0.00603676]
[1773291179867,1.90965382,2022.6,2022.3,6.48103676]
[1773291180065,1.90965382,2022.6,2022.3,7.07359152]
[1773291180960,0.55177912,2022.9,2022.4,0.59255476]
[1773291181166,1.3578747,2022.8,2022.4,0.59255476]
[1773291181565,1.90965382,2022.8,2022.4,0.59255476]
[1773291187468,0.55177912,2022.5,2022.3,0.00603676]
[1773291187666,0.55177912,2022.5,2021.9,6.475]
[1773291187667,0.55177912,2022.3,2021.9,6.475]
[1773291187972,0.55177912,2022.2,2021.9,0.59255476]
[1773291188170,0.55177912,2022.0,2021.6,0.59255476]
[1773291188371,0.55177912,2022.0,2021.6,6.475]
[1773291188669,0.55177912,2021.8,2021.2,0.59255476]
[1773291188871,0.55177912,2021.8,2021.3,0.59255476]
[1773291189568,0.55177912,2021.8,2021.3,0.5985496]
[1773291193172,0.55177912,2022.2,2021.5,0.59255476]
[1773291193371,0.55177912,2022.2,2021.7,0.59255476]
[1773291195980,0.55177912,2022.4,2021.7,0.59255476]
[1773291200785,0.55177912,2022.4,2021.9,0.57158378]
[1773291201582,0.55177912,2022.4,2022.0,7.04758378]
[1773291202979,0.55177912,2022.4,2022.0,0.57158378]
[1773291203576,0.54021142,2022.5,2022.0,0.57158378]
[1773291204890,0.54021142,2022.5,2022.1,0.57158378]
[1773291207279,0.54021142,2022.6,2022.1,0.57158378]
[1773291211385,0.54021142,2022.6,2022.0,7.04758378]
[1773291211982,0.54021142,2022.6,2022.1,0.57158378]
[1773291214383,0.54021142,2022.4,2022.1,0.57158378]
[1773291216487,0.54021142,2022.4,2021.7,0.25122382]
[1773291216684,0.54021142,2022.4,2021.9,0.57158378]
[1773291216885,0.54021142,2022.4,2022.0,7.04758378]
[1773291217188,0.54021142,2022.4,2022.1,0.57158378]
[1773291217786,0.54021142,2022.4,2021.4,0.57158378]
[1773291217986,0.54021142,2022.4,2021.6,0.57158378]
[1773291218789,0.54021142,2022.4,2021.8,0.57158378]
[1773291218992,0.54021142,2022.4,2022.0,0.57158378]
[1773291220491,0.78742142,2022.5,2022.0,0.57158378]
[1773291220888,0.54021142,2022.4,2022.0,0.57158378]
[1773291221593,0.54021142,2022.4,2022.0,7.04758378]
[1773291221890,0.54021142,2022.4,2022.0,0.57158378]
[1773291226193,0.54021142,2022.4,2022.1,0.58824165]
[1773291226394,0.84014187,2022.5,2022.1,0.58824165]
[1773291229392,4.36004165,2023.1,2022.1,0.58824165]
[1773291229600,0.84007187,2023.1,2022.2,0.58824165]
[1773291229888,0.59293187,2023.0,2022.2,0.58824165]
[1773291231795,0.5938491,2022.9,2022.2,0.58824165]
[1773291231991,0.5938491,2022.9,2022.4,0.54511956]
[1773291232291,0.5938491,2022.9,2022.5,0.54511956]
[1773291233296,0.5938491,2022.9,2022.4,0.54511956]
[1773291235998,0.59736092,2023.2,2022.4,0.54511956]
[1773291236203,0.59736092,2023.2,2022.5,0.54511956]
[1773291236700,0.5938491,2022.9,2022.3,7.02611956]
[1773291236896,0.5938491,2022.9,2022.4,0.54511956]
[1773291240405,0.25063182,2023.2,2022.4,0.54511956]
[1773291240604,0.84448092,2023.2,2022.4,0.54511956]
[1773291240798,0.5938491,2023.1,2022.4,0.54511956]
[1773291241905,0.25063182,2023.2,2022.4,0.54511956]
[1773291242103,0.5938491,2023.3,2022.5,0.54511956]
[1773291242304,0.5938491,2023.5,2022.7,0.54511956]
[1773291242614,0.5938491,2023.5,2022.9,0.54511956]
[1773291243109,0.5938491,2023.3,2022.9,0.55051799]
[1773291243611,0.5938491,2023.3,2022.7,6.485]
[1773291243807,0.5938491,2023.3,2022.6,7.03011956]
[1773291244008,0.5938491,2023.3,2022.7,0.54511956]
[1773291244713,0.5938491,2023.3,2022.7,0.55022883]
[1773291246211,0.5938491,2023.4,2022.7,0.55022883]
[1773291252520,0.59976505,2023.5,2022.7,0.55022883]
[1773291252721,0.00591595,2023.5,2022.7,1.90860751]
[1773291252919,0.00591595,2023.5,2023.0,0.54511956]
[1773291253125,6.475,2024.1,2023.2,0.54511956]
[1773291253126,0.5938491,2024.1,2023.2,0.54511956]
[1773291253318,0.5938491,2024.1,2023.1,7.84837868]
[1773291253319,0.5938491,2024.1,2023.4,0.54511956]
[1773291254319,0.59745272,2024.1,2023.4,0.54511956]
[1773291254524,0.59745272,2024.1,2023.5,0.54511956]
[1773291257622,0.00360362,2024.1,2023.5,0.54511956]
[1773291259026,0.59745272,2024.1,2023.6,0.54511956]
[1773291259428,0.59745272,2024.1,2023.5,0.79033823]
[1773291260230,0.59745272,2024.1,2023.5,0.54511956]
[1773291261324,0.6057392,2023.9,2023.3,0.60358603]
[1773291261829,0.6057392,2023.9,2023.3,0.84680254]
[1773291264325,0.6057392,2023.9,2023.3,0.60358603]
[1773291269434,0.6057392,2024.0,2023.3,0.60358603]
[1773291269834,0.60934282,2024.1,2023.3,0.60358603]
[1773291272035,0.6057392,2024.0,2023.3,0.60358603]
[1773291278341,1.3563872,2023.9,2023.3,0.60358603]
[1773291278531,0.6057392,2023.8,2023.3,0.60358603]
[1773291282432,0.00360362,2024.1,2023.3,0.60358603]
[1773291282433,0.58944214,2023.6,2023.3,0.60358603]
[1773291287049,0.58944214,2023.6,2023.2,0.8459185]
[1773291287750,0.58944214,2023.6,2023.3,0.5940403]
[1773291290147,0.58944214,2023.6,2023.2,0.2518782]
[1773291290353,0.58944214,2023.6,2023.1,7.03134804]
[1773291290648,0.58944214,2023.6,2023.2,0.54034804]
[1773291292146,0.56727177,2023.2,2022.9,7.03734804]
[1773291292349,0.56727177,2023.2,2022.9,5.45304601]
[1773291292750,0.56727177,2023.4,2023.0,0.54034804]
[1773291296454,0.56727177,2023.4,2022.9,5.70271232]
[1773291296950,0.56727177,2023.4,2023.0,0.54034804]
[1773291300558,0.56727177,2023.4,2022.9,0.24966631]
[1773291300758,0.56727177,2023.4,2022.8,0.54034804]
[1773291301360,1.92365897,2023.0,2022.7,0.54545731]
[1773291301655,1.3563872,2023.2,2022.6,0.54034804]
[1773291301856,0.56727177,2023.1,2022.6,0.54034804]
[1773291302255,0.56727177,2023.1,2022.7,0.54034804]
[1773291302455,0.56727177,2023.1,2022.7,0.54448516]
[1773291309057,0.56727177,2023.1,2022.6,0.24495698]
[1773291309263,0.56727177,2022.9,2022.5,0.54034804]
[1773291310158,0.56727177,2022.9,2022.5,0.54422377]
[1773291311364,0.56727177,2023.1,2022.5,0.54422377]
[1773291311864,0.56727177,2023.1,2022.6,0.54034804]
[1773291313663,0.56727177,2022.9,2022.5,0.79675775]
[1773291315162,0.56727177,2022.9,2022.6,0.54034804]
[1773291316665,0.56727177,2022.9,2022.5,0.79675775]
[1773291317157,0.56727177,2022.9,2022.6,0.54034804]
[1773291319570,0.56727177,2022.9,2022.5,0.79675775]
[1773291319970,0.56727177,2022.9,2022.6,0.5651281]
[1773291322772,0.56727177,2022.9,2022.5,0.56900383]
[1773291324473,0.57648409,2023.2,2022.8,0.5651281]
[1773291325377,0.24709,2023.5,2022.8,0.5651281]
[1773291325378,0.57648409,2023.4,2022.8,0.5651281]
[1773291331684,0.24709,2023.5,2023.0,0.5651281]
[1773291331988,0.57648409,2023.7,2023.0,0.5651281]
[1773291332188,0.57648409,2023.7,2022.9,7.9533872]
[1773291332189,0.57648409,2023.7,2023.2,0.5651281]
[1773291338687,0.57648409,2023.6,2023.1,0.5651281]
[1773291338893,0.57648409,2023.6,2023.0,0.5651281]
[1773291341496,0.56953468,2023.4,2022.8,0.54736219]
[1773291341694,0.56953468,2023.4,2022.6,0.54736219]
[1773291343494,0.56953468,2023.2,2022.6,0.54736219]
[1773291345693,0.56953468,2023.2,2022.7,0.54736219]
[1773291353801,6.25452105,2023.6,2022.7,0.54736219]
[1773291354105,0.59903044,2023.5,2022.7,0.54736219]
[1773291358511,0.59903044,2023.3,2022.7,0.54736219]
[1773291362912,0.59903044,2023.1,2022.7,0.54736219]
[1773291368816,0.59903044,2023.1,2022.5,0.56266394]
[1773291369414,0.59903044,2023.1,2022.6,0.55878821]
[1773291373119,0.59903044,2023.1,2022.5,0.81129186]
[1773291373420,0.59903044,2023.0,2022.4,0.55878821]
[1773291374419,0.59903044,2023.0,2022.4,0.56439028]
[1773291382824,0.56801799,2023.1,2022.4,0.56439028]
[1773291386227,0.81513799,2023.2,2022.4,0.56439028]
[1773291386428,0.81513799,2023.2,2022.5,0.58974532]
[1773291388736,0.56801799,2023.1,2022.5,0.58974532]
[1773291390531,0.81513799,2023.2,2022.5,0.58974532]
[1773291390732,0.56801799,2023.2,2022.5,0.58974532]
[1773291392239,0.56801799,2023.2,2022.5,0.839263]
[1773291392439,0.56801799,2023.2,2022.6,0.58974532]
[1773291399545,0.56801799,2023.2,2022.7,0.58974532]
[1773291414546,1.92531661,2023.2,2022.7,0.58974532]
[1773291414752,0.57028708,2022.8,2022.4,0.58526432]
[1773291419060,0.81742708,2023.0,2022.5,0.57966225]
[1773291419559,0.57028708,2022.9,2022.5,0.57966225]
[1773291433572,0.81742708,2023.0,2022.5,0.57966225]
[1773291433774,0.24714,2023.0,2022.5,0.57966225]
[1773291434073,0.81742708,2023.0,2022.5,0.57966225]
[1773291434775,0.57028708,2022.9,2022.5,0.57966225]
[1773291436074,0.57028708,2022.9,2022.4,0.58526432]
[1773291436573,0.57028708,2022.9,2022.4,0.00560207]
[1773291436873,0.57028708,2022.9,2022.4,0.58526432]
[1773291444784,0.56703104,2022.7,2022.2,0.56808695]
[1773291445790,0.56703104,2022.7,2022.2,0.57219887]
[1773291446780,1.92432966,2022.7,2022.2,0.00411192]
[1773291446985,0.24716,2022.8,2021.8,1.35729862]
[1773291446986,0.56703104,2022.3,2021.8,6.751]
[1773291447191,0.56703104,2022.3,2021.9,0.56808695]
[1773291447492,0.56703104,2022.3,2021.8,6.751]
[1773291447697,0.56703104,2022.3,2021.8,7.31908695]
[1773291447993,0.57300041,2022.3,2021.8,7.32526731]
[1773291448481,0.57300041,2022.3,2021.9,0.56808695]
[1773291453595,0.57300041,2022.3,2021.8,7.32526731]
[1773291454693,0.57300041,2022.3,2021.9,0.56808695]
[1773291456600,0.57300041,2022.3,2021.2,0.56808695]
[1773291456798,0.56703104,2022.1,2021.6,0.56808695]
[1773291457802,0.56703104,2022.1,2021.6,0.57266689]
[1773291458204,0.81427104,2022.2,2021.6,0.57266689]
[1773291460004,0.56703104,2022.1,2021.6,0.57266689]
[1773291463303,1.35886216,2022.5,2021.6,0.57266689]
[1773291463304,0.29461692,2022.5,2021.6,0.57266689]
[1773291463501,0.54232135,2022.3,2021.8,0.54469533]
[1773291464504,0.54786051,2022.3,2021.8,0.54469533]
[1773291473810,0.00553916,2022.3,2021.8,0.54469533]
[1773291474421,4.11290165,2023.3,2022.2,1.35886216]
[1773291474610,0.57085463,2023.3,2022.9,1.35886216]
[1773291474816,0.57085463,2023.3,2022.7,6.802]
[1773291475113,0.57085463,2023.2,2022.7,6.802]
[1773291475509,0.57085463,2023.0,2022.2,1.35886216]
[1773291475712,0.57085463,2023.0,2022.6,6.802]
[1773291482223,0.57085463,2023.0,2022.2,9.12355999]
[1773291482426,0.57085463,2023.0,2022.3,6.826]
[1773291484516,0.57085463,2023.0,2022.3,14.59069783]
[1773291488626,0.57491588,2023.5,2022.9,1.35886216]
[1773291488827,0.57491588,2023.5,2023.0,6.878]
[1773291489025,2.4728,2023.3,2023.0,6.878]
[1773291489418,2.4728,2023.2,2023.0,6.878]
[1773291489619,0.57491588,2023.5,2023.0,6.878]
[1773291490732,0.5791518,2023.5,2023.0,6.878]
[1773291494429,0.00423592,2023.5,2023.0,6.878]
[1773291494626,0.58146108,2023.5,2022.9,1.35886216]
[1773291494830,0.58146108,2023.5,2023.0,6.93]
[1773291500036,0.58146108,2023.5,2023.0,6.97482844]
[1773291500536,0.58146108,2023.5,2023.1,0.04482844]
[1773291500733,0.58146108,2023.5,2023.1,0.04975891]
[1773291503835,0.57957717,2023.9,2023.1,0.04975891]
[1773291504738,0.58531222,2023.9,2023.2,7.0217063]
[1773291505138,0.58531222,2023.9,2023.2,0.0417063]
[1773291505338,0.58531222,2023.9,2023.2,7.0247063]
[1773291505838,0.58531222,2023.9,2023.2,7.0267063]
[1773291511346,0.58531222,2023.9,2023.3,0.03895996]
[1773291518551,0.58531222,2023.9,2023.4,7.028]
[1773291520258,0.58531222,2023.9,2023.4,7.06592475]
[1773291528368,0.58531222,2023.9,2023.3,1.45045525]
[1773291528570,0.58531222,2023.9,2023.4,7.064]
[1773291529771,0.58531222,2023.9,2023.4,7.15808057]
[1773291530773,0.58531222,2023.9,2023.4,7.064]
[1773291531078,0.58531222,2023.9,2023.3,1.35637468]
[1773291531369,0.58531222,2023.9,2023.4,7.077]
[1773291535774,0.58531222,2023.9,2023.4,7.099]
[1773291537476,0.58531222,2023.9,2023.4,7.108]
[1773291537876,0.60335246,2023.7,2023.4,7.108]
[1773291539379,0.60335246,2023.7,2023.2,8.01085508]
[1773291539580,0.60335246,2023.7,2023.3,7.12]
[1773291539774,0.60335246,2023.7,2023.3,7.122]
[1773291540973,0.60335246,2023.7,2023.2,8.01085508]
[1773291541181,0.60335246,2023.8,2023.5,1.35637468]
[1773291541475,0.60908751,2023.9,2023.5,1.35637468]
[1773291541680,0.60908751,2023.9,2023.3,8.48537468]
[1773291543780,0.00573505,2023.9,2023.5,1.35637468]
[1773291544181,0.60335246,2024.0,2023.5,1.35637468]
[1773291544877,1.95972714,2023.8,2023.2,8.01085508]
[1773291545077,0.60335246,2023.7,2023.2,0.24615725]
[1773291545383,0.60335246,2023.7,2023.3,7.155]
[1773291546084,0.60335246,2023.7,2023.3,7.16]
[1773291549383,0.60335246,2023.7,2023.1,9.37658335]
[1773291549586,0.60335246,2023.7,2023.2,7.181]
[1773291551184,0.60335246,2023.7,2023.1,9.37658335]
[1773291551482,0.60335246,2023.7,2023.2,7.193]
[1773291551684,0.60335246,2023.6,2023.1,0.25551084]
[1773291551889,0.60335246,2023.6,2023.1,7.45251084]
[1773291552089,0.60335246,2023.6,2023.1,0.25551084]
[1773291552487,0.60335246,2023.6,2023.1,7.45551084]
[1773291554794,0.60335246,2023.6,2023.1,0.25551084]
[1773291561297,0.60335246,2023.6,2023.1,0.00493047]
[1773291564796,0.82375887,2023.5,2023.1,0.00493047]
[1773291564994,0.57667887,2023.4,2023.1,0.00493047]
[1773291568003,0.57667887,2023.4,2023.0,7.51549833]
[1773291568899,0.57667887,2023.4,2023.0,7.52107088]
[1773291570201,0.57667887,2023.4,2023.0,0.24707088]
[1773291570603,0.57667887,2023.4,2022.9,7.307]
[1773291570805,0.57667887,2023.4,2022.6,7.76469783]
[1773291571002,0.57667887,2023.4,2022.7,7.309]
[1773291571305,0.57606184,2023.2,2022.7,7.309]
[1773291571498,0.57606184,2023.2,2022.7,7.31531313]
[1773291573708,0.57606184,2023.2,2022.7,7.33131313]
[1773291579712,0.57606184,2023.2,2022.7,0.00631313]
[1773291580009,0.57606184,2023.2,2022.8,7.361]
[1773291581612,0.57606184,2023.2,2022.8,7.4090515]
[1773291583512,0.57606184,2023.2,2022.8,0.0480515]
[1773291585014,0.2471,2023.3,2022.8,0.0480515]
[1773291585312,0.59414915,2023.4,2022.8,0.0480515]
[1773291585814,0.59414915,2023.4,2022.8,7.4390515]
[1773291586612,0.2471,2023.3,2022.8,7.4440515]
[1773291586913,0.59414915,2023.2,2022.8,7.4440515]
[1773291590116,0.59414915,2023.2,2022.8,7.44224889]
[1773291592018,0.59414915,2023.2,2022.9,0.04358553]
[1773291594319,0.24713,2023.1,2022.8,7.43941384]
[1773291594921,0.83845208,2023.1,2022.8,7.48141384]
[1773291595621,0.24713,2023.1,2022.8,7.48141384]
[1773291599113,0.83845208,2023.1,2022.8,0.04341384]
[1773291599319,0.83845208,2023.1,2022.7,0.00631313]
[1773291599618,0.83845208,2023.1,2022.8,7.461]
[1773291600518,0.59974644,2023.0,2022.4,7.76469783]
[1773291600724,0.59974644,2023.0,2022.3,7.47411307]
[1773291600923,0.59658987,2022.8,2022.4,0.00711307]
[1773291601116,0.59658987,2022.8,2022.4,7.47711307]
[1773291601623,0.59658987,2022.8,2022.4,7.48251139]
[1773291601821,0.59658987,2022.6,2022.1,0.00711307]
[1773291602023,0.59658987,2022.6,2022.1,0.25435603]
[1773291602222,0.59658987,2022.6,2022.2,0.00834199]
[1773291602421,0.59658987,2022.6,2022.1,0.24724296]
[1773291602422,0.59658987,2022.6,2022.1,0.25558495]
[1773291603122,0.59658987,2022.6,2022.1,0.26038184]
[1773291603322,0.59658987,2022.6,2021.9,7.474]
[1773291603525,0.59658987,2022.6,2021.9,7.482]
[1773291603929,0.59846649,2022.4,2021.8,0.00335984]
[1773291604331,0.59846649,2022.4,2021.9,0.00335984]
[1773291604626,0.59846649,2022.4,2022.0,0.00335984]
[1773291605330,0.59846649,2022.4,2021.9,7.49035984]
[1773291606727,0.59846649,2022.4,2021.9,0.00335984]
[1773291608031,0.59846649,2022.4,2021.8,0.25241787]
[1773291608231,0.59846649,2022.4,2021.8,7.75541787]
[1773291609027,0.24714,2023.0,2022.0,1.35746839]
[1773291609333,0.60033873,2022.9,2022.0,1.35746839]
[1773291609531,0.60033873,2022.9,2021.8,9.11288626]
[1773291609928,0.60033873,2022.9,2021.9,0.06595867]
[1773291611729,0.60033873,2022.9,2022.1,0.06595867]
[1773291613635,0.60033873,2022.9,2022.3,0.06821727]
[1773291621444,0.60033873,2022.9,2022.2,7.78703846]
[1773291621638,0.5871542,2022.7,2022.2,7.82913652]
[1773291622946,0.5871542,2022.7,2022.2,0.29313652]
[1773291623243,0.5871542,2022.7,2022.2,7.79303846]
[1773291623646,0.5871542,2022.7,2022.2,7.83528656]
[1773291624250,0.5871542,2022.7,2022.3,0.04147399]
[1773291625741,0.8343142,2022.8,2022.3,0.04147399]
[1773291627841,0.5871542,2022.7,2022.2,0.28966961]
[1773291628040,0.5871542,2022.7,2022.3,7.553]
[1773291628245,0.5871542,2022.7,2022.4,0.04166487]
[1773291628439,0.5871542,2022.7,2022.3,7.59466487]
[1773291628849,0.5871542,2022.7,2022.4,0.04166487]
[1773291629056,0.5871542,2023.0,2022.4,0.04166487]
[1773291634060,0.5871542,2023.0,2022.3,7.57615797]
[1773291634258,0.5871542,2023.0,2022.3,7.59115797]
[1773291638062,0.58764616,2022.8,2022.3,7.59115797]
[1773291638362,0.58764616,2022.8,2022.4,0.02533694]
[1773291640169,0.5871542,2023.1,2022.4,0.02533694]
[1773291641172,0.5871542,2023.1,2023.0,0.00878502]
[1773291641370,0.5871542,2023.1,2022.4,0.02533694]
[1773291643573,0.5871542,2023.1,2022.4,1.38301101]
[1773291645170,0.59218165,2022.9,2022.3,7.568]
[1773291645873,0.59218165,2022.9,2022.3,7.59434676]
[1773291648272,0.59218165,2022.9,2022.3,15.35904459]
[1773291649079,0.59218165,2022.9,2022.4,0.02633339]
[1773291650382,0.59218165,2022.9,2022.5,0.02666954]
[1773291651279,0.59218165,2022.9,2022.4,1.35767407]
[1773291651483,0.59218165,2022.9,2022.5,0.02667334]
[1773291655085,0.59218165,2022.9,2022.4,1.35767407]
[1773291655286,0.59218165,2022.9,2022.4,1.38595788]
[1773291656886,0.59218165,2022.9,2022.3,15.41769783]
[1773291657086,0.59218165,2022.9,2022.3,7.653]
[1773291659191,0.59218165,2022.9,2022.2,8.01573629]
[1773291659382,0.59218165,2022.9,2022.2,15.68273629]
[1773291661691,0.58516521,2022.7,2022.2,15.68273629]
[1773291661988,0.58516521,2022.5,2022.0,6.77297063]
[1773291662193,0.57416809,2022.3,2021.8,0.00557085]
[1773291662487,0.57416809,2022.1,2021.8,0.00557085]
[1773291662682,0.57416809,2022.1,2021.5,9.31125868]
[1773291663579,0.57416809,2022.1,2021.5,9.31485309]
[1773291664788,0.57416809,2022.1,2021.6,0.27522753]
[1773291666092,0.57416809,2022.1,2021.7,0.27774765]
[1773291666383,0.57416809,2022.1,2021.8,0.27774765]
[1773291666586,0.57416809,2022.1,2021.7,1.35767407]
[1773291666891,0.57416809,2022.2,2021.7,0.27774765]
[1773291667086,0.57416809,2022.2,2021.5,1.6093145]
[1773291667383,0.57416809,2022.2,2021.6,0.27774765]
[1773291667590,0.57416809,2022.2,2021.5,1.88706215]
[1773291667986,0.57416809,2022.2,2021.6,0.27821875]
[1773291669887,0.57416809,2022.2,2021.9,0.27821875]
[1773291670087,0.2533607,2022.3,2021.9,0.27821875]
[1773291670391,0.0061307,2022.3,2022.1,0.28052917]
[1773291670889,0.0061307,2022.3,2022.0,0.28052917]
[1773291671189,0.58029879,2022.3,2022.0,0.28052917]
[1773291673885,0.58029879,2022.3,2021.9,0.28316951]
[1773291676799,0.58029879,2022.3,2021.8,1.63994629]
[1773291677104,0.58029879,2022.3,2021.9,0.28227222]
[1773291683106,0.55777755,2022.5,2022.1,0.28133204]
[1773291683312,0.55777755,2022.5,2022.2,1.63900611]
[1773291683510,0.55777755,2022.5,2022.1,0.28133204]
[1773291683707,0.55777755,2022.5,2021.8,1.88140236]
[1773291684209,0.56371753,2022.5,2021.8,1.88140236]
[1773291685612,0.56371753,2022.5,2021.9,0.28123673]
[1773291689809,0.56371753,2022.5,2022.1,0.27664538]
[1773291693113,0.55777755,2022.7,2022.3,0.2754409]
[1773291694118,0.56323777,2022.7,2022.3,0.2754409]
[1773291698024,0.56323777,2022.7,2022.2,1.87484519]
[1773291698218,0.56323777,2022.7,2022.2,0.51717112]
[1773291704631,0.56323777,2022.7,2022.2,0.24290419]
[1773291704830,0.56323777,2022.7,2022.0,1.5993153]
[1773291705030,0.56323777,2022.7,2022.1,0.24164123]
[1773291711730,0.55159429,2022.8,2022.2,0.24086144]
[1773291712134,0.55159429,2023.2,2022.2,0.24086144]
[1773291712329,0.55159429,2023.1,2022.4,0.24859367]
[1773291712730,0.55650115,2023.1,2022.4,0.24859367]
[1773291720636,0.55159429,2022.9,2022.4,0.24859367]
[1773291721040,0.55159429,2022.9,2022.4,0.24948081]
[1773291721239,0.55159429,2022.9,2022.3,0.24710361]
[1773291724746,0.55159429,2022.9,2022.5,0.24376872]
[1773291724937,0.00490686,2023.1,2022.5,0.24376872]
[1773291724938,0.55159429,2023.0,2022.5,0.24376872]
[1773291727151,0.00490686,2023.1,2022.6,0.24476488]
[1773291727152,0.55650115,2023.1,2022.6,0.24476488]
[1773291729945,0.00490686,2023.1,2022.6,0.24476488]
[1773291730752,0.55650115,2023.1,2022.6,0.24476488]
[1773291731253,0.55650115,2023.1,2022.6,7.95976488]
[1773291731848,0.55650115,2023.1,2022.5,7.95852219]
[1773291733950,0.55650115,2023.1,2022.6,0.24249129]
[1773291738456,0.55159429,2023.2,2022.7,0.24309892]
[1773291739364,0.55616196,2023.2,2022.7,0.24309892]
[1773291740851,0.55922293,2023.0,2022.5,7.729]
[1773291741058,0.55922293,2023.0,2022.5,7.73]
[1773291741254,0.55922293,2023.0,2022.5,15.732703]
[1773291741451,0.55922293,2023.0,2022.6,0.24292552]
[1773291742150,0.5637906,2023.2,2022.6,0.24292552]
[1773291743959,0.55922293,2023.5,2022.6,0.24292552]
[1773291744162,0.55922293,2023.5,2022.9,0.59123474]
[1773291744358,0.55922293,2023.5,2022.9,8.33223474]
[1773291744959,0.56498708,2023.5,2022.9,8.33223474]
[1773291745755,0.00576415,2023.5,2023.0,0.59123474]
[1773291745959,0.55922293,2024.0,2023.3,0.59123474]
[1773291746154,0.55922293,2024.0,2023.4,0.59123474]
[1773291747058,0.56317289,2024.0,2023.4,0.59614389]
[1773291747862,0.56317289,2024.0,2023.5,0.59123474]
[1773291749462,0.56317289,2024.0,2023.4,0.59614389]
[1773291749657,0.56317289,2024.0,2023.0,11.70585842]
[1773291749658,0.55922293,2023.8,2023.1,8.35101222]
[1773291749966,0.55922293,2023.8,2023.2,8.35823474]
[1773291750466,0.55922293,2023.8,2023.3,0.59123474]
[1773291750766,0.56317289,2024.0,2023.3,0.59580165]
[1773291754369,0.55922293,2024.3,2023.4,0.59123474]
[1773291755271,0.56513441,2024.3,2023.4,0.59123474]
[1773291756368,0.56513441,2024.3,2023.6,0.59123474]
[1773291756568,0.56513441,2024.3,2023.7,0.59123474]
[1773291757667,0.56513441,2024.3,2023.8,0.59123474]
[1773291758267,0.56513441,2024.3,2023.4,7.75977748]
[1773291758466,0.56513441,2024.3,2023.6,0.59123474]
[1773291759770,0.56513441,2024.3,2023.5,0.59123474]
[1773291760071,0.56513441,2024.3,2023.6,0.59123474]
[1773291765570,0.56513441,2024.3,2023.7,0.59648556]
[1773291766875,0.60646134,2024.1,2023.5,8.46048556]
[1773291767075,0.60646134,2023.9,2023.5,8.46148556]
[1773291768971,0.60646134,2023.9,2023.6,0.59648556]
[1773291769172,0.60646134,2024.2,2023.6,0.59648556]
[1773291772877,0.63344981,2024.3,2024.0,0.59461975]
[1773291773178,0.59228193,2024.4,2024.0,0.59461975]
[1773291773979,0.34948888,2024.4,2024.0,0.59461975]
[1773291774480,0.00418695,2024.4,2024.0,0.59461975]
[1773291774876,0.34994491,2024.4,2024.0,0.59461975]
[1773291776084,0.00177998,2024.7,2024.2,0.59892558]
[1773291776384,1.6028332,2024.9,2024.2,0.59892558]
[1773291777178,1.60897248,2024.9,2024.2,0.59892558]
[1773291777382,1.3559132,2024.7,2024.2,0.59892558]
[1773291777776,1.3559132,2024.7,2024.1,0.59981557]
[1773291779986,0.00114225,2024.6,2024.1,0.59981557]
[1773291780688,0.25420153,2024.9,2024.4,0.59924445]
[1773291781091,4.10141188,2025.6,2024.5,1.3559132]